fUST/lending_fUST_20250329
["ID","MTS","AMOUNT","RATE_DAILY","PERIOD"]
[356800121,1743222564873,-266.1,0.000244,2]
[356800122,1743222578066,673.3460952,0.00023568,2]
[356800127,1743222583393,151.16026651,0.00024344,2]
[356800128,1743222585411,151.16026648,0.00024415,2]
[356800129,1743222593646,210.80334655,0.0002399,3]
[356800130,1743222595513,500.0,0.00022641,2]
[356800131,1743222598344,835.30152125,0.0002399,3]
[356800137,1743222606187,1899.50172453,0.00024343,2]
[356800138,1743222606849,600.0,0.00023976,2]
[356800139,1743222613875,300.0,0.00023976,2]
[356800185,1743222632265,-300.0,0.00024442,2]
[356800187,1743222632275,-6284.04,0.00024443,2]
[356800188,1743222632287,-6284.04,0.00024443,2]
[356800189,1743222632297,-6284.04,0.00024443,2]
[356800190,1743222632307,-6284.04,0.00024443,2]
[356800191,1743222632316,-6284.04,0.00024443,2]
[356800192,1743222632326,-6284.04,0.00024443,2]
[356800193,1743222632335,-6284.04,0.00024443,2]
[356800194,1743222632345,-151.0,0.00024443,7]
[356800195,1743222632355,-1067.928422,0.00024443,2]
[356800196,1743222632364,-1067.928422,0.00024443,2]
[356800197,1743222632374,-355.899872,0.00024443,7]
[356800198,1743222632383,-355.899872,0.00024443,7]
[356800199,1743222632392,-334.70115113,0.00024443,2]
[356800201,1743222632402,-10412.26734472,0.00024444,3]
[356800203,1743222632411,-96209.05435319,0.00024444,3]
[356800204,1743222632579,-3936.78993443,0.00024444,3]
[356800205,1743222632588,-549.94,0.00024444,3]
[356800206,1743222632598,-160.0,0.00024444,3]
[356800207,1743222632607,-151.0,0.00024444,7]
[356800208,1743222632616,-151.0,0.00024444,7]
[356800209,1743222632625,-576.963,0.00024444,7]
[356800210,1743222632635,-228.229325,0.00024444,7]
[356800211,1743222632644,-576.963,0.00024444,7]
[356800212,1743222632653,-1067.928422,0.00024444,2]
[356800213,1743222632663,-1067.928422,0.00024444,2]
[356800214,1743222632672,-355.899872,0.00024444,7]
[356800215,1743222632681,-355.899872,0.00024444,7]
[356800216,1743222632691,-151.16026648,0.00024486,2]
[356800217,1743222632700,-151.0,0.000245,6]
[356800218,1743222632709,-244.265968,0.000245,3]
[356800219,1743222632719,-299.45988219,0.00024517,2]
[356800220,1743222632729,-151.16026648,0.00024557,2]
[356800221,1743222632738,-151.0,0.000246,10]
[356800222,1743222632748,-151.0,0.000246,6]
[356800223,1743222632757,-5203.21757483,0.000246,5]
[356800224,1743222632767,-5203.21757467,0.000246,5]
[356800225,1743222632777,-5203.21757467,0.000246,5]
[356800226,1743222632790,-552.04109545,0.0002462,2]
[356800227,1743222632799,-5203.21757467,0.00024624,5]
[356800228,1743222632809,-6284.04,0.00024652,2]
[356800229,1743222632819,-6284.04,0.00024654,2]
[356800230,1743222632828,-5450.14682294,0.00024655,3]
[356800231,1743222632838,-6284.04,0.00024655,2]
[356800232,1743222632848,-6284.04,0.00024655,2]
[356800233,1743222632858,-5329.21534298,0.00024655,2]
[356800251,1743222638109,-500.0,0.00024442,2]
[356800253,1743222638120,-500.0,0.00024442,2]
[356800255,1743222638129,-455.87979418,0.00024442,2]
[356800257,1743222638139,-275.53781298,0.00024442,2]
[356800258,1743222638148,-954.82465702,0.00024655,2]
[356800260,1743222638158,-6284.04,0.00024655,2]
[356800262,1743222638167,-1049.94205794,0.00024655,2]
[356800263,1743222638214,-5234.09794206,0.00024655,2]
[356800264,1743222638224,-500.0,0.00024656,2]
[356800265,1743222638233,-937.60693062,0.00024656,2]
[356800266,1743222638243,-223.039885,0.00024656,7]
[356800267,1743222638253,-151.0,0.00024656,7]
[356800268,1743222638262,-151.0,0.00024656,7]
[356800269,1743222638272,-151.0,0.00024656,7]
[356800270,1743222638281,-151.0,0.00024656,7]
[356800271,1743222638291,-151.0,0.00024656,7]
[356800272,1743222638300,-151.0,0.00024656,7]
[356800273,1743222638310,-151.0,0.00024656,7]
[356800274,1743222638319,-151.0,0.00024656,7]
[356800275,1743222638329,-268.493244,0.00024656,7]
[356800276,1743222638338,-576.963,0.00024656,7]
[356800277,1743222638347,-576.963,0.00024656,7]
[356800278,1743222638357,-6284.04,0.00024656,2]
[356800279,1743222638367,-6284.04,0.00024656,2]
[356800280,1743222638376,-6284.04,0.00024656,2]
[356800281,1743222638386,-6284.04,0.00024656,2]
[356800282,1743222638395,-6284.04,0.00024656,2]
[356800283,1743222638405,-6284.13009,0.00024656,2]
[356800284,1743222638414,-1067.928422,0.00024656,2]
[356800285,1743222638423,-1067.928422,0.00024656,2]
[356800286,1743222638433,-355.899872,0.00024656,7]
[356800287,1743222638442,-355.899872,0.00024656,7]
[356800288,1743222638451,-6297.81025728,0.00024657,3]
[356800289,1743222638461,-502.41002772,0.00024657,2]
[356800290,1743222638470,-500.57431412,0.00024657,2]
[356800291,1743222638481,-505.3273187,0.00024657,2]
[356800292,1743222638490,-501.42864348,0.00024657,2]
[356800293,1743222638499,-325.6845662,0.00024657,2]
[356800294,1743222638509,-500.0,0.00024657,2]
[356800295,1743222638518,-501.2342038,0.00024657,2]
[356800296,1743222638528,-500.72010845,0.00024657,2]
[356800297,1743222638537,-500.0,0.00024657,2]
[356800298,1743222638546,-502.61753447,0.00024657,2]
[356800299,1743222638556,-500.0,0.00024657,2]
[356800300,1743222638565,-500.0,0.00024657,2]
[356800301,1743222638576,-500.0,0.00024657,2]
[356800302,1743222638585,-500.0,0.00024657,2]
[356800303,1743222638595,-500.0,0.00024657,2]
[356800304,1743222638605,-500.0,0.00024657,2]
[356800305,1743222638614,-500.0,0.00024657,2]
[356800306,1743222638623,-500.83441065,0.00024657,2]
[356800307,1743222638633,-500.0,0.00024657,2]
[356800308,1743222638643,-500.84076543,0.00024657,2]
[356800309,1743222638652,-500.81598902,0.00024657,2]
[356800310,1743222638662,-500.0,0.00024657,2]
[356800311,1743222638671,-500.0,0.00024657,2]
[356800312,1743222638681,-500.0,0.00024657,2]
[356800313,1743222638690,-500.43038122,0.00024657,2]
[356800314,1743222638699,-500.0,0.00024657,2]
[356800315,1743222638709,-500.0,0.00024657,2]
[356800316,1743222638718,-500.0,0.00024657,2]
[356800317,1743222638727,-500.0,0.00024657,2]
[356800318,1743222638737,-225.37271749,0.00024657,2]
[356800319,1743222638746,-500.0,0.00024657,2]
[356800320,1743222638756,-500.0,0.00024657,2]
[356800321,1743222638765,-1000.0,0.00024657,2]
[356800322,1743222638775,-500.0,0.00024657,2]
[356800323,1743222638784,-500.0,0.00024657,2]
[356800324,1743222638793,-500.0,0.00024657,2]
[356800325,1743222638803,-500.0,0.00024657,2]
[356800326,1743222638812,-500.0,0.00024657,2]
[356800327,1743222638821,-1226.4,0.00024657,2]
[356800328,1743222638831,-624.03712809,0.00024657,2]
[356800329,1743222638840,-500.0,0.00024657,2]
[356800330,1743222638849,-500.0,0.00024657,2]
[356800331,1743222638858,-501.73842604,0.00024657,2]
[356800332,1743222638867,-500.0,0.00024657,2]
[356800333,1743222638876,-500.0,0.00024657,2]
[356800334,1743222638886,-500.0,0.00024657,2]
[356800335,1743222638895,-500.0,0.00024657,2]
[356800336,1743222638904,-500.0,0.00024657,2]
[356800337,1743222638913,-582.27,0.00024657,2]
[356800338,1743222638923,-573.97304337,0.00024657,2]
[356800339,1743222638932,-500.0,0.00024657,2]
[356800340,1743222638942,-500.0,0.00024657,2]
[356800341,1743222638951,-618.24,0.00024657,2]
[356800342,1743222638960,-769.5,0.00024657,2]
[356800343,1743222638970,-500.0,0.00024657,2]
[356800344,1743222638979,-347.63867498,0.00024657,2]
[356800345,1743222638989,-500.0,0.00024657,2]
[356800346,1743222638998,-151.0,0.00024657,7]
[356800347,1743222639008,-151.0,0.00024657,7]
[356800348,1743222639017,-153.036403,0.00024657,7]
[356800349,1743222639027,-500.0,0.00024657,2]
[356800350,1743222639036,-526.58,0.00024657,2]
[356800351,1743222639050,-477.40102019,0.00024657,2]
[356800352,1743222639059,-500.0,0.00024657,2]
[356800353,1743222639069,-547.11,0.00024657,2]
[356800354,1743222639078,-500.0,0.00024657,2]
[356800355,1743222639087,-686.41,0.00024657,2]
[356800356,1743222639096,-501.5230729,0.00024657,2]
[356800357,1743222639105,-667.46,0.00024657,2]
[356800358,1743222639114,-500.0,0.00024657,2]
[356800359,1743222639123,-595.5513468,0.00024657,2]
[356800360,1743222639133,-500.0,0.00024657,2]
[356800361,1743222639142,-500.0,0.00024657,2]
[356800362,1743222639151,-501.17254304,0.00024657,2]
[356800363,1743222639161,-500.74412242,0.00024657,2]
[356800364,1743222639170,-556.23,0.00024657,2]
[356800365,1743222639180,-500.0,0.00024657,2]
[356800366,1743222639189,-500.0,0.00024657,2]
[356800367,1743222639199,-500.0,0.00024657,2]
[356800368,1743222639208,-500.0,0.00024657,2]
[356800369,1743222639217,-799.57,0.00024657,2]
[356800370,1743222639226,-580.42,0.00024657,2]
[356800371,1743222639236,-553.68,0.00024657,2]
[356800372,1743222639245,-840.84,0.00024657,2]
[356800373,1743222639255,-500.0,0.00024657,2]
[356800374,1743222639264,-500.0,0.00024657,2]
[356800375,1743222639274,-500.0,0.00024657,2]
[356800376,1743222639283,-531.28,0.00024657,2]
[356800377,1743222639297,-500.0,0.00024657,2]
[356800378,1743222639306,-500.0,0.00024657,2]
[356800379,1743222639315,-547.32,0.00024657,2]
[356800380,1743222639325,-513.11194762,0.00024657,2]
[356800381,1743222639334,-500.0,0.00024657,2]
[356800382,1743222639343,-500.0,0.00024657,2]
[356800383,1743222639353,-927.65,0.00024657,2]
[356800384,1743222639363,-569.15,0.00024657,2]
[356800385,1743222639373,-500.0,0.00024657,2]
[356800386,1743222639382,-642.60737037,0.00024657,2]
[356800387,1743222639391,-513.3,0.00024657,2]
[356800388,1743222639401,-500.0,0.00024657,2]
[356800389,1743222639410,-979.49,0.00024657,2]
[356800390,1743222639419,-602.41,0.00024657,2]
[356800391,1743222639428,-283.97,0.00024657,2]
[356800392,1743222639438,-500.0,0.00024657,2]
[356800393,1743222639447,-268.92162886,0.00024657,2]
[356800394,1743222639456,-500.0,0.00024657,2]
[356800395,1743222639465,-500.0,0.00024657,2]
[356800396,1743222639475,-501.29130657,0.00024657,2]
[356800397,1743222639483,-500.0,0.00024657,2]
[356800398,1743222639493,-749.64,0.00024657,2]
[356800399,1743222639502,-500.0,0.00024657,2]
[356800400,1743222639511,-500.0,0.00024657,2]
[356800401,1743222639519,-500.0,0.00024657,2]
[356800402,1743222639529,-962.25,0.00024657,2]
[356800403,1743222639540,-500.0,0.00024657,2]
[356800404,1743222639549,-500.0,0.00024657,2]
[356800405,1743222639559,-535.83374456,0.00024657,2]
[356800406,1743222639568,-597.67,0.00024657,2]
[356800407,1743222639577,-500.0,0.00024657,2]
[356800408,1743222639586,-502.10074454,0.00024657,2]
[356800409,1743222639595,-500.0,0.00024657,2]
[356800410,1743222639604,-500.0,0.00024657,2]
[356800411,1743222639613,-500.0,0.00024657,2]
[356800412,1743222639623,-534.98826049,0.00024657,2]
[356800413,1743222639632,-500.0,0.00024657,2]
[356800414,1743222639642,-500.0,0.00024657,2]
[356800415,1743222639651,-870.68,0.00024657,2]
[356800416,1743222639660,-500.0,0.00024657,2]
[356800417,1743222639669,-500.0,0.00024657,2]
[356800418,1743222639679,-500.0,0.00024657,2]
[356800419,1743222639688,-461.46515932,0.00024657,2]
[356800420,1743222639697,-500.0,0.00024657,2]
[356800421,1743222639707,-500.0,0.00024657,2]
[356800422,1743222639716,-500.0,0.00024657,2]
[356800423,1743222639725,-500.0,0.00024657,2]
[356800425,1743222639735,-500.0,0.00024657,2]
[356800427,1743222639745,-500.0,0.00024657,2]
[356800428,1743222639755,-500.0,0.00024657,2]
[356800430,1743222639764,-500.0,0.00024657,2]
[356800432,1743222639774,-814.75,0.00024657,2]
[356800434,1743222639784,-500.0,0.00024657,2]
[356800435,1743222639794,-500.0,0.00024657,2]
[356800436,1743222639803,-238.132461,0.00024657,7]
[356800437,1743222639813,-449.31662912,0.00024657,2]
[356800438,1743222639879,-249.79337088,0.00024657,2]
[356800439,1743222639889,-500.0,0.00024657,2]
[356800440,1743222639898,-500.0,0.00024657,2]
[356800441,1743222639907,-500.0,0.00024657,2]
[356800442,1743222639917,-500.0,0.00024657,2]
[356800443,1743222639926,-500.0,0.00024657,2]
[356800444,1743222639935,-500.0,0.00024657,2]
[356800445,1743222639945,-500.0,0.00024657,2]
[356800446,1743222639955,-500.0,0.00024657,2]
[356800447,1743222639964,-62.11352486,0.00024657,2]
[356800449,1743222640248,-22.55413629,0.00024657,2]
[356800450,1743222640478,-2072.70233885,0.00024657,2]
[356800451,1743222640487,-500.0,0.00024657,2]
[356800452,1743222640497,-1459.25,0.00024657,2]
[356800453,1743222640506,-703.6,0.00024657,2]
[356800454,1743222640515,-526.07,0.00024657,2]
[356800455,1743222640525,-466.08238828,0.00024657,2]
[356800456,1743222640534,-500.0,0.00024657,2]
[356800457,1743222640544,-500.0,0.00024657,2]
[356800458,1743222640554,-500.0,0.00024657,2]
[356800459,1743222640562,-500.0,0.00024657,2]
[356800460,1743222640572,-500.0,0.00024657,2]
[356800461,1743222640582,-896.64,0.00024657,2]
[356800462,1743222640591,-500.0,0.00024657,2]
[356800463,1743222640600,-500.0,0.00024657,2]
[356800464,1743222640610,-500.0,0.00024657,2]
[356800465,1743222640619,-1253.98,0.00024657,2]
[356800467,1743222640629,-528.87,0.00024657,2]
[356800469,1743222640638,-500.0,0.00024657,2]
[356800471,1743222640647,-518.5,0.00024657,2]
[356800472,1743222640657,-500.0,0.00024657,2]
[356800473,1743222640666,-1753.58,0.00024657,2]
[356800474,1743222640675,-500.0,0.00024657,2]
[356800475,1743222640684,-500.0,0.00024657,2]
[356800476,1743222640695,-500.0,0.00024657,2]
[356800477,1743222640704,-500.0,0.00024657,2]
[356800478,1743222640713,-1249.73,0.00024657,2]
[356800479,1743222640722,-500.0,0.00024657,2]
[356800480,1743222640731,-1702.09,0.00024657,2]
[356800481,1743222640741,-500.0,0.00024657,2]
[356800482,1743222640750,-878.68,0.00024657,2]
[356800483,1743222640760,-500.0,0.00024657,2]
[356800484,1743222640769,-500.0,0.00024657,2]
[356800485,1743222640779,-500.0,0.00024657,2]
[356800486,1743222640788,-500.0,0.00024657,2]
[356800487,1743222640798,-505.15837974,0.00024657,2]
[356800488,1743222640807,-500.0,0.00024657,2]
[356800489,1743222640817,-500.0,0.00024657,2]
[356800490,1743222640827,-500.0,0.00024657,2]
[356800491,1743222640837,-244.25366008,0.00024657,2]
[356800492,1743222640846,-500.0,0.00024657,2]
[356800493,1743222640856,-500.0,0.00024657,2]
[356800494,1743222640865,-500.0,0.00024657,2]
[356800495,1743222640875,-500.0,0.00024657,2]
[356800496,1743222640885,-500.0,0.00024657,2]
[356800497,1743222640895,-500.0,0.00024657,2]
[356800498,1743222640904,-500.0,0.00024657,2]
[356800499,1743222640915,-500.0,0.00024657,2]
[356800500,1743222640924,-500.0,0.00024657,2]
[356800501,1743222640934,-500.0,0.00024657,2]
[356800502,1743222640944,-500.0,0.00024657,2]
[356800503,1743222640954,-522.06,0.00024657,2]
[356800504,1743222640963,-217.41437307,0.00024657,2]
[356800505,1743222640973,-451.64214995,0.00024657,2]
[356800506,1743222640984,-500.0,0.00024657,2]
[356800507,1743222640994,-548.25448655,0.00024657,2]
[356800508,1743222641004,-500.0,0.00024657,2]
[356800509,1743222641201,-772.47,0.00024657,2]
[356800510,1743222641212,-500.0,0.00024657,2]
[356800511,1743222641222,-500.0,0.00024657,2]
[356800512,1743222641232,-500.0,0.00024657,2]
[356800513,1743222641241,-1473.29,0.00024657,2]
[356800514,1743222641250,-707.44,0.00024657,2]
[356800515,1743222641260,-500.0,0.00024657,2]
[356800516,1743222641269,-589.81,0.00024657,2]
[356800517,1743222641279,-500.0,0.00024657,2]
[356800518,1743222641294,-500.0,0.00024657,2]
[356800519,1743222641305,-500.0,0.00024657,2]
[356800520,1743222641314,-500.0,0.00024657,2]
[356800521,1743222641324,-696.03,0.00024657,2]
[356800522,1743222641334,-500.0,0.00024657,2]
[356800523,1743222641344,-463.28300745,0.00024657,2]
[356800524,1743222641354,-500.0,0.00024657,2]
[356800525,1743222641363,-500.0,0.00024657,2]
[356800526,1743222641372,-573.91,0.00024657,2]
[356800527,1743222641382,-500.0,0.00024657,2]
[356800528,1743222641391,-500.0,0.00024657,2]
[356800529,1743222641401,-958.17,0.00024657,2]
[356800530,1743222641410,-500.0,0.00024657,2]
[356800531,1743222641419,-500.0,0.00024657,2]
[356800532,1743222641428,-699.51,0.00024657,2]
[356800533,1743222641438,-198.978506,0.00024657,7]
[356800534,1743222641447,-500.0,0.00024657,2]
[356800535,1743222641456,-2086.36,0.00024657,2]
[356800536,1743222641465,-500.0,0.00024657,2]
[356800537,1743222641474,-500.0,0.00024657,2]
[356800538,1743222641484,-500.0,0.00024657,2]
[356800539,1743222641493,-500.0,0.00024657,2]
[356800540,1743222641502,-500.0,0.00024657,2]
[356800541,1743222641511,-157.02271,0.00024657,7]
[356800542,1743222641521,-513.22129983,0.00024657,2]
[356800543,1743222641530,-500.0,0.00024657,2]
[356800544,1743222641542,-500.0,0.00024657,2]
[356800545,1743222641552,-500.0,0.00024657,2]
[356800546,1743222641561,-529.09,0.00024657,2]
[356800547,1743222641571,-500.0,0.00024657,2]
[356800548,1743222641580,-500.0,0.00024657,2]
[356800549,1743222641589,-500.0,0.00024657,2]
[356800550,1743222641599,-779.69,0.00024657,2]
[356800551,1743222641608,-500.0,0.00024657,2]
[356800552,1743222641618,-500.0,0.00024657,2]
[356800553,1743222641627,-500.0,0.00024657,2]
[356800554,1743222641637,-2166.76,0.00024657,2]
[356800555,1743222641646,-500.0,0.00024657,2]
[356800556,1743222641655,-937.66,0.00024657,2]
[356800557,1743222641665,-677.37,0.00024657,2]
[356800558,1743222641674,-1269.92,0.00024657,2]
[356800559,1743222641683,-535.10964681,0.00024657,2]
[356800560,1743222641693,-500.0,0.00024657,2]
[356800561,1743222641702,-500.0,0.00024657,2]
[356800562,1743222641711,-2755.07,0.00024657,2]
[356800563,1743222641720,-151.0,0.00024657,7]
[356800564,1743222641730,-191.004222,0.00024657,7]
[356800565,1743222641739,-500.0,0.00024657,2]
[356800566,1743222641748,-933.05,0.00024657,2]
[356800567,1743222641758,-500.0,0.00024657,2]
[356800568,1743222641767,-248.37417256,0.00024657,2]
[356800569,1743222641776,-151.0,0.00024657,7]
[356800570,1743222641786,-151.0,0.00024657,7]
[356800571,1743222641799,-151.0,0.00024657,7]
[356800572,1743222641808,-151.0,0.00024657,7]
[356800573,1743222641817,-151.0,0.00024657,7]
[356800574,1743222641826,-500.0,0.00024657,2]
[356800575,1743222641835,-193.787753,0.00024657,7]
[356800576,1743222641845,-1511.6,0.00024657,2]
[356800577,1743222641855,-636.67,0.00024657,2]
[356800578,1743222641865,-500.0,0.00024657,2]
[356800579,1743222641874,-500.0,0.00024657,2]
[356800580,1743222641884,-500.0,0.00024657,2]
[356800581,1743222641894,-500.0,0.00024657,2]
[356800582,1743222641904,-1272.34,0.00024657,2]
[356800583,1743222641915,-501.93312062,0.00024657,2]
[356800584,1743222641925,-916.11,0.00024657,2]
[356800585,1743222641935,-500.0,0.00024657,2]
[356800586,1743222641944,-151.0,0.00024657,7]
[356800587,1743222641954,-151.0,0.00024657,7]
[356800588,1743222641964,-151.0,0.00024657,7]
[356800589,1743222641974,-151.0,0.00024657,7]
[356800590,1743222641984,-151.0,0.00024657,7]
[356800591,1743222641994,-151.0,0.00024657,7]
[356800592,1743222642005,-151.0,0.00024657,7]
[356800593,1743222642014,-151.0,0.00024657,7]
[356800594,1743222642024,-151.0,0.00024657,7]
[356800595,1743222642034,-151.0,0.00024657,7]
[356800596,1743222642052,-500.0,0.00024657,2]
[356800597,1743222642062,-151.728236,0.00024657,7]
[356800598,1743222642072,-932.91,0.00024657,2]
[356800599,1743222642082,-490.76954921,0.00024657,2]
[356800604,1743222642985,1009.14376225,0.00024,2]
[356800636,1743222646506,-9.23045079,0.00024657,2]
[356800637,1743222646689,-500.0,0.00024657,2]
[356800638,1743222646722,-854.01,0.00024657,2]
[356800639,1743222646732,-641.38,0.00024657,2]
[356800640,1743222646741,-746.74,0.00024657,2]
[356800641,1743222646752,-763.08,0.00024657,2]
[356800642,1743222646762,-500.0,0.00024657,2]
[356800643,1743222646772,-500.0,0.00024657,2]
[356800644,1743222646781,-500.0,0.00024657,2]
[356800645,1743222646791,-500.0,0.00024657,2]
[356800646,1743222646802,-500.0,0.00024657,2]
[356800647,1743222646812,-500.0,0.00024657,2]
[356800648,1743222646822,-783.11,0.00024657,2]
[356800649,1743222646832,-500.0,0.00024657,2]
[356800650,1743222646842,-869.07,0.00024657,2]
[356800651,1743222646852,-952.98,0.00024657,2]
[356800652,1743222646862,-1063.63,0.00024657,2]
[356800653,1743222646871,-500.0,0.00024657,2]
[356800654,1743222646881,-500.0,0.00024657,2]
[356800655,1743222646891,-500.0,0.00024657,2]
[356800656,1743222646900,-500.0,0.00024657,2]
[356800657,1743222646911,-500.0,0.00024657,2]
[356800658,1743222646920,-1595.67,0.00024657,2]
[356800659,1743222646930,-500.0,0.00024657,2]
[356800660,1743222646939,-500.0,0.00024657,2]
[356800661,1743222646949,-1543.57,0.00024657,2]
[356800662,1743222646959,-500.0,0.00024657,2]
[356800663,1743222646968,-500.0,0.00024657,2]
[356800664,1743222646977,-500.0,0.00024657,2]
[356800665,1743222646987,-532.91209668,0.00024657,2]
[356800666,1743222646996,-500.0,0.00024657,2]
[356800667,1743222647005,-809.43,0.00024657,2]
[356800668,1743222647015,-500.0,0.00024657,2]
[356800669,1743222647025,-500.0,0.00024657,2]
[356800670,1743222647034,-1296.11,0.00024657,2]
[356800671,1743222647044,-500.0,0.00024657,2]
[356800672,1743222647057,-3542.65,0.00024657,2]
[356800673,1743222647067,-500.0,0.00024657,2]
[356800674,1743222647076,-1410.32,0.00024657,2]
[356800675,1743222647086,-500.0,0.00024657,2]
[356800676,1743222647095,-500.0,0.00024657,2]
[356800677,1743222647104,-793.71,0.00024657,2]
[356800678,1743222647113,-500.0,0.00024657,2]
[356800679,1743222647122,-500.0,0.00024657,2]
[356800680,1743222647132,-500.0,0.00024657,2]
[356800681,1743222647142,-500.0,0.00024657,2]
[356800682,1743222647151,-1468.54,0.00024657,2]
[356800683,1743222647160,-500.0,0.00024657,2]
[356800684,1743222647169,-500.0,0.00024657,2]
[356800685,1743222647179,-247.17764994,0.00024657,2]
[356800686,1743222647188,-500.0,0.00024657,2]
[356800687,1743222647197,-500.0,0.00024657,2]
[356800688,1743222647206,-682.39,0.00024657,2]
[356800689,1743222647216,-3311.86,0.00024657,2]
[356800690,1743222647225,-500.0,0.00024657,2]
[356800691,1743222647235,-500.0,0.00024657,2]
[356800692,1743222647244,-502.01,0.00024657,2]
[356800693,1743222647254,-502.97858351,0.00024657,2]
[356800694,1743222647263,-2585.55,0.00024657,2]
[356800695,1743222647273,-1118.4,0.00024657,2]
[356800696,1743222647283,-539.58,0.00024657,2]
[356800697,1743222647293,-3484.07,0.00024657,2]
[356800698,1743222647302,-1655.5,0.00024657,2]
[356800699,1743222647311,-500.0,0.00024657,2]
[356800700,1743222647321,-505.10651269,0.00024657,2]
[356800701,1743222647331,-500.0,0.00024657,2]
[356800702,1743222647341,-500.0,0.00024657,2]
[356800703,1743222647351,-502.41683106,0.00024657,2]
[356800704,1743222647360,-500.0,0.00024657,2]
[356800705,1743222647369,-501.32376585,0.00024657,2]
[356800706,1743222647379,-1152.61,0.00024657,2]
[356800707,1743222647388,-1519.57,0.00024657,2]
[356800708,1743222647398,-503.27697886,0.00024657,2]
[356800709,1743222647408,-505.38255144,0.00024657,2]
[356800710,1743222647417,-3821.98,0.00024657,2]
[356800711,1743222647427,-909.44,0.00024657,2]
[356800712,1743222647437,-500.0,0.00024657,2]
[356800713,1743222647446,-500.0,0.00024657,2]
[356800714,1743222647456,-500.0,0.00024657,2]
[356800715,1743222647466,-500.0,0.00024657,2]
[356800716,1743222647476,-500.0,0.00024657,2]
[356800717,1743222647485,-500.0,0.00024657,2]
[356800718,1743222647495,-530.54645654,0.00024657,2]
[356800719,1743222647505,-1932.37,0.00024657,2]
[356800720,1743222647517,-500.0,0.00024657,2]
[356800721,1743222647527,-1163.77,0.00024657,2]
[356800722,1743222647537,-713.38,0.00024657,2]
[356800723,1743222647547,-500.0,0.00024657,2]
[356800724,1743222647557,-500.0,0.00024657,2]
[356800725,1743222647567,-624.1,0.00024657,2]
[356800726,1743222647577,-1013.03,0.00024657,2]
[356800727,1743222647587,-500.0,0.00024657,2]
[356800728,1743222647597,-500.0,0.00024657,2]
[356800729,1743222647607,-500.0,0.00024657,2]
[356800730,1743222647616,-171.39544951,0.00024657,2]
[356800731,1743222647626,-500.0,0.00024657,2]
[356800732,1743222647637,-500.0,0.00024657,2]
[356800733,1743222647649,-619.79,0.00024657,2]
[356800734,1743222647658,-500.0,0.00024657,2]
[356800735,1743222647668,-500.0,0.00024657,2]
[356800736,1743222647677,-500.0,0.00024657,2]
[356800737,1743222647687,-1869.24,0.00024657,2]
[356800738,1743222647696,-502.02318683,0.00024657,2]
[356800739,1743222647706,-500.0,0.00024657,2]
[356800740,1743222647716,-500.0,0.00024657,2]
[356800741,1743222647725,-500.0,0.00024657,2]
[356800742,1743222647735,-589.66,0.00024657,2]
[356800743,1743222647745,-500.0,0.00024657,2]